fUSD/lending_fUSD_20250310
["ID","MTS","AMOUNT","RATE_DAILY","PERIOD"]
[355859490,1741640612378,-4936.65,0.00027768,120]
[355859491,1741640612449,-500.0,0.00027768,120]
[355859492,1741640612519,-5892.55,0.00027768,120]
[355859493,1741640612587,-4616.97,0.00027768,120]
[355859494,1741640612656,-4936.65,0.00027768,120]
[355859495,1741640612724,-5892.55,0.00027768,120]
[355859496,1741640612790,-4936.65,0.00027768,120]
[355859497,1741640612858,-4616.97,0.00027768,120]
[355859498,1741640612925,-5892.55,0.00027768,120]
[355859499,1741640612995,-500.0,0.00027768,120]
[355859500,1741640613080,-4936.65,0.00027768,120]
[355859501,1741640613171,-4616.97,0.00027768,120]
[355859502,1741640613252,-5892.55,0.00027768,120]
[355859503,1741640613342,-554.66,0.00027768,120]
[355859504,1741640613428,-4936.65,0.00027768,120]
[355859505,1741640613514,-4616.97,0.00027768,120]
[355859506,1741640613599,-5892.55,0.00027768,120]
[355859507,1741640613684,-4936.65,0.00027768,120]
[355859508,1741640613766,-5892.55,0.00027768,120]
[355859509,1741640613848,-4936.65,0.00027768,120]
[355859510,1741640613925,-4616.97,0.00027768,120]
[355859511,1741640614002,-5892.55,0.00027768,120]
[355859512,1741640614080,-4936.65,0.00027768,120]
[355859513,1741640614156,-4616.97,0.00027768,120]
[355859514,1741640614230,-5892.55,0.00027768,120]
[355859515,1741640614304,-4616.97,0.00027768,120]
[355859516,1741640614376,-5892.55,0.00027768,120]
[355859517,1741640614458,-4936.65,0.00027768,120]
[355859518,1741640614532,-4616.97,0.00027768,120]
[355859519,1741640614608,-5892.55,0.00027768,120]
[355859520,1741640614689,-4936.65,0.00027768,120]
[355859521,1741640614765,-4616.97,0.00027768,120]
[355859522,1741640614835,-5892.55,0.00027768,120]
[355859523,1741640614915,-4936.65,0.00027768,120]
[355859524,1741640614994,-500.0,0.00027768,120]
[355859525,1741640615074,-4616.97,0.00027768,120]
[355859526,1741640615155,-5892.55,0.00027768,120]
[355859527,1741640615235,-4936.65,0.00027768,120]
[355859528,1741640615311,-500.0,0.00027768,120]
[355859529,1741640615388,-4616.97,0.00027768,120]
[355859530,1741640615464,-5892.55,0.00027768,120]
[355859531,1741640615537,-4936.65,0.00027768,120]
[355859532,1741640615612,-500.0,0.00027768,120]
[355859533,1741640615687,-4616.99995108,0.00027768,120]
[355859534,1741640615762,-5892.55,0.00027768,120]
[355859535,1741640615838,-4936.65,0.00027768,120]
[355859536,1741640615912,-500.0,0.00027768,120]
[355859537,1741640615983,-5892.55,0.00027768,120]
[355859538,1741640616055,-4936.65,0.00027768,120]
[355859539,1741640616132,-500.0,0.00027768,120]
[355859540,1741640616210,-5892.55,0.00027768,120]
[355859541,1741640616287,-4936.65,0.00027768,120]
[355859542,1741640616360,-500.0,0.00027768,120]
[355859543,1741640616438,-5892.55,0.00027768,120]
[355859544,1741640616511,-4936.65,0.00027768,120]
[355859545,1741640616589,-500.0,0.00027768,120]
[355859546,1741640616661,-5892.78624674,0.00027768,120]
[355859547,1741640616734,-4936.65,0.00027768,120]
[355859548,1741640616806,-500.0,0.00027768,120]
[355859549,1741640616881,-4936.65,0.00027768,120]
[355859550,1741640616956,-500.0,0.00027768,120]
[355859551,1741640617033,-4936.65,0.00027768,120]
[355859552,1741640617107,-500.0,0.00027768,120]
[355859553,1741640617184,-500.0,0.00027768,120]
[355859554,1741640617262,-4936.65,0.00027768,120]
[355859555,1741640617340,-500.0,0.00027768,120]
[355859556,1741640617415,-4936.65,0.00027768,120]
[355859557,1741640617489,-500.0,0.00027768,120]
[355859558,1741640617565,-4936.65,0.00027768,120]
[355859559,1741640617640,-500.0,0.00027768,120]
[355859560,1741640617714,-690.52,0.00027768,120]
[355859561,1741640617789,-4936.77240317,0.00027768,120]
[355859562,1741640617863,-500.0,0.00027768,120]
[355859563,1741640617934,-690.52,0.00027768,120]
[355859564,1741640618006,-500.0,0.00027768,120]
[355859565,1741640618079,-690.52,0.00027768,120]
[355859566,1741640618154,-500.0,0.00027768,120]
[355859567,1741640618234,-690.52,0.00027768,120]
[355859568,1741640618309,-500.0,0.00027768,120]
[355859569,1741640618385,-690.52,0.00027768,120]
[355859570,1741640618455,-690.52,0.00027768,120]
[355859571,1741640618528,-563.25,0.00027768,120]
[355859572,1741640618601,-690.52,0.00027768,120]
[355859573,1741640618672,-690.52,0.00027768,120]
[355859574,1741640618742,-500.0,0.00027768,120]
[355859575,1741640618812,-4039.37,0.00027768,120]
[355859576,1741640618881,-500.0,0.00027768,120]
[355859577,1741640618952,-690.52,0.00027768,120]
[355859578,1741640619025,-4039.37,0.00027768,120]
[355859579,1741640619093,-500.0,0.00027768,120]
[355859580,1741640619166,-690.52,0.00027768,120]
[355859581,1741640619240,-4039.37,0.00027768,120]
[355859582,1741640619313,-500.0,0.00027768,120]
[355859583,1741640619387,-690.52,0.00027768,120]
[355859584,1741640619464,-4039.37,0.00027768,120]
[355859585,1741640619540,-500.0,0.00027768,120]
[355859586,1741640619615,-690.52,0.00027768,120]
[355859587,1741640620102,-4039.37,0.00027768,120]
[355859588,1741640620180,-690.52,0.00027768,120]
[355859589,1741640620250,-500.0,0.00027768,120]
[355859590,1741640620319,-4039.37,0.00027768,120]
[355859591,1741640620389,-690.52,0.00027768,120]
[355859592,1741640620457,-185.66962229,0.00027768,120]
[355859593,1741640620526,-4039.37,0.00027768,120]
[355859594,1741640620596,-9301.69,0.00027768,120]
[355859595,1741640620668,-500.0,0.00027768,120]
[355859596,1741640620737,-690.52,0.00027768,120]
[355859597,1741640620809,-4039.37,0.00027768,120]
[355859598,1741640620879,-9301.69,0.00027768,120]
[355859599,1741640620946,-690.52,0.00027768,120]
[355859600,1741640621012,-4039.37,0.00027768,120]
[355859601,1741640621079,-9301.69,0.00027768,120]
[355859602,1741640621146,-500.0,0.00027768,120]
[355859603,1741640621215,-690.52,0.00027768,120]
[355859604,1741640621291,-4039.37,0.00027768,120]
[355859605,1741640621361,-9301.69,0.00027768,120]
[355859606,1741640621429,-500.0,0.00027768,120]
[355859607,1741640621498,-690.52,0.00027768,120]
[355859608,1741640621565,-9301.69,0.00027768,120]
[355859609,1741640621633,-204.84,0.00027768,120]
[355859610,1741640621705,-690.52,0.00027768,120]
[355859611,1741640621775,-442.92935572,0.00027768,120]
[355859612,1741640623636,-180.19092986,0.00013699,30]
[355859613,1741640623721,-437.03,0.00016493,30]
[355859614,1741640623809,-437.03,0.00020971,30]
[355859615,1741640623888,-437.03,0.0002545,30]
[355859616,1741640623972,-202.0,0.0002746,30]
[355859617,1741640624141,-500.0,0.00028562,120]
[355859618,1741640624470,-500.0,0.00029062,120]
[355859619,1741640624541,-503.764152,0.00029062,120]
[355859620,1741640624611,-202.0,0.0002911,30]
[355859621,1741640624682,-437.03,0.00029928,30]
[355859622,1741640624753,-500.0,0.00030662,120]
[355859623,1741640624825,-500.0,0.00030662,120]
[355859624,1741640624895,-500.0,0.00030662,120]
[355859625,1741640624964,-202.0,0.0003075,30]
[355859626,1741640625034,-150.0,0.00030961,120]
[355859627,1741640625102,-202.0,0.000324,30]
[355859628,1741640625174,-504.905647,0.00032533,120]
[355859629,1741640625243,-3057.18,0.000328,30]
[355859630,1741640625316,-513.521838,0.00033118,120]
[355859631,1741640625390,-202.0,0.0003404,30]
[355859632,1741640625470,-437.03,0.00034406,120]
[355859633,1741640625546,-199.03,0.00034482,39]
[355859634,1741640625622,-3603.742,0.00034482,39]
[355859635,1741640625697,-202.0,0.0003569,30]
[355859636,1741640625773,-167.77488693,0.00036575,30]
[355859637,1741640625844,-167.77488693,0.00036959,30]
[355859638,1741640625914,-2393.0,0.00037,117]
[355859639,1741640625981,-167.77488696,0.00037068,30]
[355859640,1741640626051,-202.0,0.0003734,30]
[355859641,1741640626119,-167.77488693,0.00037342,30]
[355859642,1741640626187,-167.77488696,0.00037562,30]
[355859643,1741640626254,-167.77488693,0.00037753,30]
[355859644,1741640626324,-167.77488693,0.00038137,30]
[355859645,1741640626395,-167.77488693,0.00038521,30]
[355859646,1741640626466,-437.03,0.00038884,120]
[355859647,1741640626538,-202.0,0.0003898,30]
[355859648,1741640626612,-208.737999,0.00039,120]
[355859649,1741640626688,-100000.0,0.0004,50]
[355859650,1741640626760,-3757.27,0.0004,120]
[355859651,1741640626827,-12500.0,0.0004,120]
[355859652,1741640626894,-166.31,0.0004,120]
[355859653,1741640626967,-8354.29,0.00040063,120]
[355859654,1741640627039,-202.0,0.0004063,30]
[355859655,1741640627116,-100000.0,0.00041,51]
[355859656,1741640627191,-500.0,0.00041095,120]
[355859657,1741640627264,-600.11945091,0.000411,120]
[355859658,1741640627332,-600.11945091,0.000411,120]
[355859659,1741640627400,-600.11945091,0.000411,120]
[355859660,1741640627471,-600.11945091,0.000411,120]
[355859661,1741640627542,-600.11945091,0.000411,120]
[355859662,1741640627610,-600.11945091,0.000411,120]
[355859663,1741640627675,-600.11945091,0.000411,120]
[355859664,1741640627739,-600.11945091,0.000411,120]
[355859665,1741640627804,-600.11945091,0.000411,120]
[355859666,1741640627870,-600.11945091,0.000411,120]
[355859667,1741640627936,-600.11945091,0.000411,120]
[355859668,1741640628004,-600.11945091,0.000411,120]
[355859669,1741640628069,-600.11945091,0.000411,120]
[355859670,1741640628136,-600.11945091,0.000411,120]
[355859671,1741640628205,-600.11945091,0.000411,120]
[355859672,1741640628276,-600.11945091,0.000411,120]
[355859673,1741640628348,-600.11945091,0.000411,120]
[355859674,1741640628415,-600.11945091,0.000411,120]
[355859675,1741640628481,-600.11945091,0.000411,120]
[355859676,1741640628545,-600.11,0.000411,120]
[355859677,1741640628611,-1400.27871879,0.000411,120]
[355859678,1741640628674,-1400.27871879,0.000411,120]
[355859679,1741640628739,-1400.27871879,0.000411,120]
[355859680,1741640628809,-1400.27871879,0.000411,120]
[355859681,1741640628876,-1400.27871879,0.000411,120]
[355859682,1741640628946,-1400.27871879,0.000411,120]
[355859683,1741640629015,-1400.27871879,0.000411,120]
[355859684,1741640629086,-1400.27871879,0.000411,120]
[355859685,1741640629159,-1400.27871879,0.000411,120]
[355859686,1741640629230,-1400.27871879,0.000411,120]
[355859687,1741640629304,-1400.27871879,0.000411,120]
[355859688,1741640629376,-1400.27871879,0.000411,120]
[355859689,1741640629442,-1400.27871879,0.000411,120]
[355859690,1741640629508,-1400.27871879,0.000411,120]
[355859691,1741640629572,-1400.27871879,0.000411,120]
[355859692,1741640629635,-1400.27871879,0.000411,120]
[355859693,1741640629702,-1400.27871879,0.000411,120]
[355859694,1741640629769,-1400.27871879,0.000411,120]
[355859695,1741640629839,-1400.27871879,0.000411,120]
[355859696,1741640629912,-1400.27,0.000411,120]
[355859697,1741640629985,-1062.0,0.00041133,30]
[355859698,1741640630064,-100000.0,0.00042,52]
[355859699,1741640630137,-2292.89,0.00042,120]
[355859700,1741640630207,-500.0,0.00042191,120]
[355859701,1741640630273,-202.0,0.0004227,30]
[355859702,1741640630340,-175.36,0.0004274,91]
[355859703,1741640630410,-100000.0,0.00043,53]
[355859704,1741640630474,-500.0,0.00043287,120]
[355859705,1741640630543,-1062.0,0.00043297,30]
[355859706,1741640630609,-437.03,0.00043362,120]
[355859707,1741640630675,-6044.51,0.00043835,120]
[355859708,1741640630745,-23574.11,0.00043835,120]
[355859709,1741640630814,-719.9612,0.00043888,30]
[355859710,1741640630881,-202.0,0.0004392,30]
[355859711,1741640630949,-100000.0,0.00044,54]
[355859712,1741640631015,-516.85814,0.00044,57]
[355859713,1741640631081,-500.0,0.00044383,120]
[355859714,1741640631151,-100000.0,0.00045,56]
[355859715,1741640631221,-274.69830214,0.0004545,30]
[355859716,1741640631293,-150.0,0.0004545,30]
[355859717,1741640631367,-150.0,0.0004545,30]
[355859718,1741640631440,-179.06010288,0.0004545,30]
[355859719,1741640631511,-150.0,0.0004545,30]
[355859720,1741640631579,-150.0,0.0004545,30]
[355859721,1741640631651,-500.0,0.00045479,120]
[355859722,1741640631720,-274.69830214,0.00045501,30]
[355859723,1741640632012,-179.06010288,0.00045501,30]
[355859724,1741640632082,-150.0,0.00045524,30]
[355859725,1741640632152,-274.69830214,0.00045552,30]
[355859726,1741640632220,-179.06010288,0.00045552,30]
[355859727,1741640632287,-202.0,0.0004556,30]
[355859728,1741640632353,-150.0,0.00045563,30]
[355859729,1741640632420,-150.0,0.00045563,30]
[355859730,1741640632489,-150.0,0.00045563,30]
[355859731,1741640632558,-150.0,0.00045563,30]
[355859732,1741640632624,-1253.75144629,0.00045563,30]
[355859733,1741640632689,-11534.13674559,0.00045563,30]
[355859734,1741640632757,-561.98435428,0.00045563,30]
[355859735,1741640632825,-1004.00693938,0.00045563,30]
[355859736,1741640632892,-1062.0,0.00045576,30]
[355859737,1741640632968,-150.0,0.00045599,30]
[355859738,1741640633035,-274.69830214,0.00045603,30]
[355859739,1741640633106,-179.06010288,0.00045603,30]
[355859740,1741640633174,-274.69830214,0.00045654,30]
[355859741,1741640633244,-179.06010288,0.00045654,30]
[355859742,1741640633315,-150.0,0.0004566,30]
[355859743,1741640633388,-150.0,0.00045673,30]
[355859744,1741640633454,-274.69830214,0.00045705,30]
[355859745,1741640633522,-179.06010288,0.00045705,30]
[355859746,1741640633593,-150.0,0.00045747,30]
[355859747,1741640633664,-274.69830214,0.00045756,30]
[355859748,1741640633735,-179.06010288,0.00045756,30]
[355859749,1741640633806,-274.69830214,0.00045807,30]
[355859750,1741640633875,-179.06010288,0.00045807,30]
[355859751,1741640633942,-150.0,0.00045821,30]
[355859752,1741640634011,-274.69830214,0.00045858,30]
[355859753,1741640634077,-179.06010288,0.00045858,30]
[355859754,1741640634144,-150.0,0.00045871,30]
[355859755,1741640634210,-150.0,0.00045896,30]
[355859756,1741640634274,-274.69830214,0.00045909,30]
[355859757,1741640634338,-179.06010288,0.00045909,30]
[355859758,1741640634403,-274.69830214,0.0004596,30]
[355859759,1741640634468,-179.06010288,0.0004596,30]
[355859760,1741640634535,-150.0,0.0004597,30]
[355859761,1741640634608,-100000.0,0.00046,56]
[355859762,1741640634673,-274.69830214,0.00046011,30]
[355859763,1741640634738,-179.06010288,0.00046011,30]
[355859764,1741640634802,-150.0,0.00046044,30]
[355859765,1741640634875,-274.69830214,0.00046062,30]
[355859766,1741640634945,-179.06010288,0.00046062,30]
[355859767,1741640635011,-150.0,0.00046081,30]
[355859768,1741640635079,-274.69830214,0.00046113,30]
[355859769,1741640635151,-179.06010288,0.00046113,30]
[355859770,1741640635220,-150.0,0.00046118,30]
[355859771,1741640635290,-274.69830214,0.00046164,30]
[355859772,1741640635358,-179.06010288,0.00046164,30]
[355859773,1741640635425,-150.0,0.00046193,30]
[355859774,1741640635492,-274.69830214,0.00046215,30]
[355859775,1741640635557,-179.06010288,0.00046215,30]
[355859776,1741640635623,-274.69830214,0.00046266,30]
[355859777,1741640635691,-179.06010288,0.00046266,30]
[355859778,1741640635765,-150.0,0.00046267,30]
[355859779,1741640635838,-150.0,0.00046292,30]
[355859780,1741640635909,-274.69830214,0.00046317,30]
[355859781,1741640635978,-179.06010288,0.00046317,30]
[355859782,1741640636047,-150.0,0.00046341,30]
[355859783,1741640636115,-274.69830214,0.00046368,30]
[355859784,1741640636184,-179.06010288,0.00046368,30]
[355859785,1741640636255,-150.0,0.00046415,30]
[355859786,1741640636333,-274.69830214,0.00046419,30]
[355859787,1741640636401,-179.06010288,0.00046419,30]
[355859788,1741640636470,-274.69830214,0.0004647,30]
[355859789,1741640636540,-179.06010288,0.0004647,30]
[355859790,1741640636606,-150.0,0.0004649,30]
[355859791,1741640636671,-150.0,0.00046502,30]
[355859792,1741640636736,-274.69830214,0.00046521,30]
[355859793,1741640636805,-179.06010288,0.00046521,30]
[355859794,1741640636874,-150.0,0.00046564,30]
[355859795,1741640636942,-274.69830214,0.00046572,30]
[355859796,1741640637008,-179.06010288,0.00046572,30]
[355859797,1741640637072,-1134.01,0.00046575,120]
[355859798,1741640637138,-500.0,0.00046575,120]
[355859799,1741640637204,-274.69830214,0.00046623,30]
[355859800,1741640637269,-179.06010288,0.00046623,30]
[355859801,1741640637334,-150.0,0.00046638,30]
[355859802,1741640637396,-274.69830214,0.00046674,30]
[355859803,1741640637461,-179.06010288,0.00046674,30]
[355859804,1741640637524,-150.0,0.00046713,30]
[355859805,1741640637591,-150.0,0.00046713,30]
[355859806,1741640637658,-274.69830214,0.00046725,30]
[355859807,1741640637732,-179.06010288,0.00046725,30]
[355859808,1741640637803,-274.69830214,0.00046776,30]
[355859809,1741640637873,-179.06010288,0.00046776,30]
[355859810,1741640637943,-150.0,0.00046787,30]
[355859811,1741640638009,-274.69830214,0.00046827,30]
[355859812,1741640638079,-179.06010288,0.00046827,30]
[355859813,1741640638148,-150.0,0.00046861,30]
[355859814,1741640638217,-274.69830214,0.00046878,30]
[355859815,1741640638287,-179.06010288,0.00046878,30]
[355859816,1741640638359,-1134.01,0.00046904,120]
[355859817,1741640638425,-150.0,0.00046923,30]
[355859818,1741640638491,-274.69830214,0.00046929,30]
[355859819,1741640638555,-179.06010288,0.00046929,30]
[355859820,1741640638618,-150.0,0.00046935,30]
[355859821,1741640638682,-274.69830214,0.0004698,30]
[355859822,1741640638749,-179.06010288,0.0004698,30]
[355859823,1741640638817,-100000.0,0.00047,57]
[355859824,1741640638884,-150.0,0.0004701,30]
[355859825,1741640638948,-274.69830214,0.00047031,30]
[355859826,1741640639010,-179.06010288,0.00047031,30]
[355859827,1741640639307,-274.69830214,0.00047082,30]
[355859828,1741640639374,-179.06010288,0.00047082,30]
[355859829,1741640639440,-150.0,0.00047084,30]
[355859830,1741640639507,-274.69830214,0.00047133,30]
[355859831,1741640639577,-179.06010288,0.00047133,30]
[355859832,1741640639645,-150.0,0.00047133,30]
[355859833,1741640639712,-150.0,0.00047133,30]
[355859834,1741640639775,-150.0,0.00047158,30]
[355859835,1741640639838,-274.69830214,0.00047184,30]
[355859836,1741640639907,-179.06010288,0.00047184,30]
[355859837,1741640639976,-202.0,0.0004721,30]
[355859838,1741640640046,-1134.01,0.00047232,120]
[355859839,1741640640113,-150.0,0.00047232,30]
[355859840,1741640640185,-274.69830214,0.00047235,30]
[355859841,1741640640259,-179.06010288,0.00047235,30]
[355859842,1741640640328,-274.69830214,0.00047286,30]
[355859843,1741640640397,-179.06010288,0.00047286,30]
[355859844,1741640640467,-150.0,0.00047307,30]
[355859845,1741640640538,-274.69830214,0.00047337,30]
[355859846,1741640640613,-179.06010288,0.00047337,30]
[355859847,1741640640685,-150.0,0.00047344,30]
[355859848,1741640640756,-150.0,0.00047381,30]
[355859849,1741640640829,-274.69830214,0.00047388,30]
[355859850,1741640640901,-179.06010288,0.00047388,30]
[355859851,1741640640976,-274.69830214,0.00047439,30]
[355859852,1741640641050,-179.06010288,0.00047439,30]
[355859853,1741640641128,-150.0,0.00047455,30]
[355859854,1741640641201,-274.69830214,0.0004749,30]
[355859855,1741640641276,-179.06010288,0.0004749,30]
[355859856,1741640641346,-150.0,0.00047529,30]
[355859857,1741640641412,-274.69830214,0.00047541,30]
[355859858,1741640641479,-179.06010288,0.00047541,30]
[355859859,1741640641547,-150.0,0.00047554,30]
[355859860,1741640641615,-1134.01,0.00047561,120]
[355859861,1741640641682,-274.69830214,0.00047592,30]
[355859862,1741640641749,-179.06010288,0.00047592,30]
[355859863,1741640641817,-150.0,0.00047604,30]
[355859864,1741640641883,-274.69830214,0.00047643,30]
[355859865,1741640641949,-179.06010288,0.00047643,30]
[355859866,1741640642015,-500.0,0.00047671,120]
[355859867,1741640642079,-150.0,0.00047678,30]
[355859868,1741640642146,-274.69830214,0.00047694,30]
[355859869,1741640642215,-179.06010288,0.00047694,30]
[355859870,1741640642283,-274.69830214,0.00047745,30]
[355859871,1741640642356,-179.06010288,0.00047745,30]
[355859872,1741640642425,-2000000.0,0.0004775,120]
[355859873,1741640642499,-150.0,0.00047752,30]
[355859874,1741640642576,-150.0,0.00047765,30]
[355859875,1741640642650,-274.69830214,0.00047796,30]
[355859876,1741640642722,-179.06010288,0.00047796,30]
[355859877,1741640642800,-150.0,0.00047826,30]
[355859878,1741640642871,-437.03,0.00047841,120]
[355859879,1741640642938,-274.69830214,0.00047847,30]
[355859880,1741640643007,-179.06010288,0.00047847,30]
[355859881,1741640643082,-1134.01,0.0004789,120]
[355859882,1741640643160,-274.69830214,0.00047898,30]
[355859883,1741640643239,-179.06010288,0.00047898,30]
[355859884,1741640643315,-150.0,0.00047901,30]
[355859885,1741640643391,-274.69830214,0.00047949,30]
[355859886,1741640643467,-179.06010288,0.00047949,30]
[355859887,1741640643543,-1062.0,0.00047975,30]
[355859888,1741640643620,-150.0,0.00047975,30]
[355859889,1741640643696,-150.0,0.00047975,30]
[355859890,1741640643770,-150.0,0.00047975,30]
[355859891,1741640643843,-100000.0,0.00048,58]
[355859892,1741640643913,-1921752.1340378,0.00048,120]
[355859893,1741640654782,1088.01,8.219e-05,2]
[355859894,1741640799612,250.0,8.833e-05,2]
[355859895,1741640928770,216.3,8.686e-05,2]
[355859912,1741641031906,-1000.0,8.965e-05,2]
[355859913,1741641031916,-550.0,9e-05,2]
[355859914,1741641031927,-150.0,9.082e-05,2]
[355859915,1741641031936,-223.52,9.199e-05,2]
[355859916,1741641031946,-150.0,9.254e-05,2]
[355859917,1741641031956,-250.0,9.291e-05,2]
[355859918,1741641031966,-199.03,9.309e-05,2]
[355859919,1741641031976,-3603.742,9.309e-05,2]
[355859920,1741641031986,-335.92328994,9.309e-05,2]
[355859921,1741641031995,-335.92328994,9.398e-05,2]
[355859922,1741641032005,-269.3654,9.398e-05,2]
[355859923,1741641032017,-8052.3338,9.399e-05,2]
[355859924,1741641032028,-813.54797812,9.399e-05,2]
[355859925,1741641032054,-1280.08020411,9.399e-05,2]
[355859926,1741641032067,-451.22956552,9.399e-05,2]
[355859927,1741641032079,-419.84355001,9.399e-05,2]
[355859934,1741641037847,-665.41197804,9.399e-05,2]
[355859935,1741641037910,-2993.58862242,9.399e-05,2]
[355859936,1741641037922,-1716.83710178,9.399e-05,2]
[355859937,1741641037932,-223.118,9.399e-05,2]
[355859938,1741641037942,-150.0,9.399e-05,2]
[355859939,1741641037953,-939.8209,9.399e-05,2]
[355859940,1741641037962,-376.74336792,9.4e-05,2]
[355859941,1741641037987,-1062.4557274,9.4e-05,2]
[355860112,1741641040027,-1429.41940468,9.4e-05,2]
[355860113,1741641040038,-1346.9318,9.4e-05,2]
[355860114,1741641040048,-500.0,9.4e-05,2]
[355860115,1741641040057,-348.1107,9.4e-05,2]
[355860116,1741641040069,-31617.4404,9.4e-05,2]
[355860117,1741641040079,-23937.0202,9.4e-05,2]
[355860118,1741641040089,-2469.8719,9.4e-05,2]
[355860119,1741641040099,-9299.2488,9.4e-05,2]
[355860120,1741641040108,-6696.149,9.4e-05,2]
[355860121,1741641040118,-502.98547349,9.473e-05,2]
[355860122,1741641040127,-161.19490282,9.473e-05,2]
[355860123,1741641040136,-151.30862542,9.473e-05,2]
[355860124,1741641040145,-160.32494169,9.473e-05,2]
[355860125,1741641040156,-160.13010403,9.473e-05,2]
[355860126,1741641040165,-356.28159101,9.473e-05,2]
[355860127,1741641040174,-163.63419257,9.473e-05,2]
[355860128,1741641040184,-160.29939345,9.473e-05,2]
[355860129,1741641040193,-200.39050769,9.473e-05,2]
[355860130,1741641040202,-151.12731612,9.473e-05,2]
[355860131,1741641040212,-501.0441687,9.473e-05,2]
[355860132,1741641040221,-199.35004596,9.499e-05,2]
[355860133,1741641040230,-500.0,9.499e-05,2]
[355860134,1741641040239,-500.0,9.499e-05,2]
[355860135,1741641040249,-500.0,9.499e-05,2]
[355860136,1741641040259,-500.0,9.499e-05,2]
[355860137,1741641040268,-632.69525853,9.499e-05,2]
[355860138,1741641040278,-492.74949138,9.499e-05,2]
[355860139,1741641040287,-306.30698101,9.499e-05,2]
[355860140,1741641040296,-1958.0,9.5e-05,2]
[355860141,1741641040307,-1243245.72503055,9.5e-05,2]
[355860142,1741641040316,-150.0,9.562e-05,7]
[355860143,1741641040326,-3263.6789123,9.562e-05,2]
[355860144,1741641040335,-150.0,9.645e-05,2]
[355860145,1741641040344,-641.0,9.645e-05,2]
[355860146,1741641040354,-1418.0,9.645e-05,2]
[355860147,1741641040364,-571.0,9.645e-05,2]
[355860148,1741641040373,-688.251,9.645e-05,2]
[355860149,1741641040382,-3263.6789123,9.65e-05,2]
[355860150,1741641040392,-1012.0,9.651e-05,2]
[355860152,1741641040401,-150.0,9.651e-05,2]
[355860154,1741641040411,-3932.0,9.651e-05,2]
[355860155,1741641040420,-1113.0,9.651e-05,2]
[355860156,1741641040430,-3263.6789123,9.737e-05,2]
[355860157,1741641040439,-12287.17297376,9.757e-05,2]
[355860158,1741641040449,-150.0,9.767e-05,2]
[355860159,1741641040458,-150.0,9.767e-05,2]
[355860160,1741641040468,-150.0,9.767e-05,2]
[355860161,1741641040478,-150.0,9.767e-05,2]
[355860162,1741641040487,-1278.0,9.767e-05,2]
[355860163,1741641040496,-2033.0,9.767e-05,2]
[355860164,1741641040506,-550.0,9.767e-05,2]
[355860165,1741641040516,-3263.6789123,9.825e-05,2]
[355860166,1741641040526,-150.0,9.862e-05,2]
[355860167,1741641040535,-953.06,9.878e-05,2]
[355860168,1741641040545,-3263.6789123,9.912e-05,2]
[355860169,1741641040554,-24525.40082198,9.998e-05,2]
[355860170,1741641040564,-1080.87406297,9.998e-05,2]
[355860171,1741641040573,-200.0,9.998e-05,2]
[355860172,1741641040583,-200.0,9.998e-05,2]
[355860173,1741641040592,-176.11466586,0.0001,2]
[355860174,1741641040601,-603557.07490538,0.0001,2]
[355860175,1741641040611,-1724083.42927956,0.0001,2]
[355860176,1741641040637,-15983.224563,0.0001,2]
[355860195,1741641043165,-2500.0,9.4e-05,2]
[355860196,1741641043176,-1606.00373502,9.4e-05,2]
[355860201,1741641044393,-500.0,9.4e-05,2]
[355860207,1741641045882,-476.18406498,9.4e-05,2]
[355860208,1741641045892,-2450.67197706,0.0001,2]
[355860209,1741641045947,-479.78325027,0.0001,2]
[355860212,1741641046213,-1298.07906892,0.0001,2]